[Event "Betsys MČR v online bleskovém šachu 2021"]
[Site "Chess.com"]
[Date "2021.04.17"]
[Round "8"]
[White "Honza_13"]
[Black "FBingoPlayer"]
[Result "0-1"]
[WhiteElo "1929"]
[BlackElo "2185"]
[TimeControl "180+1"]
[EndTime "10:21:53 PDT"]
[Termination "Uživatel FBingoPlayer zvítězil na čas"]

1. Nf3 {[%clk 0:03:00.9]} 1... b6 {[%clk 0:02:59.6]} 2. g3 {[%clk 0:02:59.6]}
2... Bb7 {[%clk 0:02:59.9]} 3. Bg2 {[%clk 0:03:00]} 3... Nf6 {[%clk 0:02:59.1]}
4. O-O {[%clk 0:03:00]} 4... d6 {[%clk 0:02:57.7]} 5. d4 {[%clk 0:02:59.2]} 5...
Nbd7 {[%clk 0:02:57.8]} 6. c4 {[%clk 0:02:58.4]} 6... g6 {[%clk 0:02:57.2]} 7.
b3 {[%clk 0:02:57.8]} 7... Bg7 {[%clk 0:02:57.7]} 8. Bb2 {[%clk 0:02:58]} 8...
O-O {[%clk 0:02:58.2]} 9. Nc3 {[%clk 0:02:57.4]} 9... e6 {[%clk 0:02:57.6]} 10.
Rc1 {[%clk 0:02:55.9]} 10... a6 {[%clk 0:02:57.6]} 11. Re1 {[%clk 0:02:54.2]}
11... Qe7 {[%clk 0:02:57.2]} 12. e4 {[%clk 0:02:53.7]} 12... e5 {[%clk
0:02:57.6]} 13. Nd5 {[%clk 0:02:45.7]} 13... Nxd5 {[%clk 0:02:56.9]} 14. exd5
{[%clk 0:02:35.8]} 14... f6 {[%clk 0:02:54.6]} 15. dxe5 {[%clk 0:02:28.2]} 15...
fxe5 {[%clk 0:02:54.4]} 16. Nd2 {[%clk 0:02:07.2]} 16... Nc5 {[%clk 0:02:48.3]}
17. Qe2 {[%clk 0:01:55.5]} 17... Bh6 {[%clk 0:02:41.1]} 18. f4 {[%clk
0:01:42.2]} 18... Rae8 {[%clk 0:02:39.9]} 19. b4 {[%clk 0:01:38.3]} 19... Nd7
{[%clk 0:02:38.9]} 20. Bh3 {[%clk 0:01:28.8]} 20... Bc8 {[%clk 0:02:28.9]} 21.
Be6+ {[%clk 0:01:26.2]} 21... Kh8 {[%clk 0:02:25.4]} 22. fxe5 {[%clk 0:01:14.3]}
22... Qg7 {[%clk 0:01:51.4]} 23. Nf3 {[%clk 0:00:49.3]} 23... Bxc1 {[%clk
0:01:49.1]} 24. Rxc1 {[%clk 0:00:47.7]} 24... dxe5 {[%clk 0:00:53.8]} 25. Rf1
{[%clk 0:00:27.3]} 25... h6 {[%clk 0:00:41.4]} 26. Nxe5 {[%clk 0:00:18.6]} 26...
Rxf1+ {[%clk 0:00:37.7]} 27. Kxf1 {[%clk 0:00:18.2]} 27... Kh7 {[%clk
0:00:25.1]} 28. Nxd7 {[%clk 0:00:14.9]} 28... Qxd7 {[%clk 0:00:20.6]} 29. Bxd7
{[%clk 0:00:07]} 29... Rxe2 {[%clk 0:00:20.2]} 30. Kxe2 {[%clk 0:00:07.3]} 30...
Bxd7 {[%clk 0:00:20.5]} 31. Be5 {[%clk 0:00:07.8]} 31... c6 {[%clk 0:00:19.7]}
32. Bc7 {[%clk 0:00:05.7]} 32... cxd5 {[%clk 0:00:17]} 33. cxd5 {[%clk
0:00:04.1]} 33... b5 {[%clk 0:00:17.5]} 34. Ke3 {[%clk 0:00:04]} 34... Kg7
{[%clk 0:00:17.3]} 35. Kd4 {[%clk 0:00:02.7]} 35... Kf6 {[%clk 0:00:17.6]} 36.
Be5+ {[%clk 0:00:02.2]} 36... Ke7 {[%clk 0:00:16.7]} 37. h4 {[%clk 0:00:01.7]}
37... Bc8 {[%clk 0:00:16.3]} 38. Kc5 {[%clk 0:00:01.8]} 38... Kd7 {[%clk
0:00:16.3]} 39. Bg7 {[%clk 0:00:01.5]} 39... h5 {[%clk 0:00:15.8]} 40. Bf6
{[%clk 0:00:01.3]} 40... Kc7 {[%clk 0:00:15.6]} 41. Bg5 {[%clk 0:00:01.9]} 41...
Bd7 {[%clk 0:00:13.6]} 42. Bf4+ {[%clk 0:00:01.6]} 42... Kb7 {[%clk 0:00:13.7]}
43. Kd6 {[%clk 0:00:01.8]} 43... Bf5 {[%clk 0:00:10.7]} 44. Ke7 {[%clk
0:00:01.1]} 44... Kc8 {[%clk 0:00:11.2]} 45. d6 {[%clk 0:00:01.5]} 45... Bg4
{[%clk 0:00:10.6]} 46. Kf6 {[%clk 0:00:01]} 46... Bf5 {[%clk 0:00:10.5]} 0-1

[Event "Betsys MČR v online bleskovém šachu 2021"]
[Site "Chess.com"]
[Date "2021.04.17"]
[Round "8"]
[White "zdenav"]
[Black "Patriktesko"]
[Result "1-0"]
[WhiteElo "1842"]
[BlackElo "2041"]
[TimeControl "180+1"]
[EndTime "10:21:54 PDT"]
[Termination "Uživatel zdenav zvítězil na čas"]

1. e4 {[%clk 0:03:00.9]} 1... d5 {[%clk 0:03:00]} 2. e5 {[%clk 0:03:00.1]} 2...
Bf5 {[%clk 0:02:59.2]} 3. d4 {[%clk 0:02:59.6]} 3... e6 {[%clk 0:02:58.7]} 4. f4
{[%clk 0:02:58.8]} 4... c5 {[%clk 0:02:58.6]} 5. Nf3 {[%clk 0:02:58.4]} 5... Nc6
{[%clk 0:02:58.4]} 6. c3 {[%clk 0:02:57.9]} 6... Nge7 {[%clk 0:02:55.2]} 7. dxc5
{[%clk 0:02:56.5]} 7... Ng6 {[%clk 0:02:52.4]} 8. b4 {[%clk 0:02:53.1]} 8... a5
{[%clk 0:02:50.6]} 9. b5 {[%clk 0:02:49.7]} 9... Na7 {[%clk 0:02:37.5]} 10. Be3
{[%clk 0:02:48.1]} 10... Qc8 {[%clk 0:02:31.4]} 11. b6 {[%clk 0:02:42.3]} 11...
Nc6 {[%clk 0:02:28.9]} 12. g3 {[%clk 0:02:38.6]} 12... Be4 {[%clk 0:02:25.6]}
13. Bd3 {[%clk 0:02:32.4]} 13... Bxd3 {[%clk 0:02:22]} 14. Qxd3 {[%clk
0:02:31.4]} 14... Be7 {[%clk 0:02:19.1]} 15. O-O {[%clk 0:02:29.5]} 15... a4
{[%clk 0:02:16.3]} 16. Na3 {[%clk 0:02:27.9]} 16... Na5 {[%clk 0:02:10.3]} 17.
Qd4 {[%clk 0:02:22.8]} 17... O-O {[%clk 0:02:07.6]} 18. Nb5 {[%clk 0:02:17.7]}
18... Qc6 {[%clk 0:02:00.5]} 19. Nd6 {[%clk 0:02:13.7]} 19... Nc4 {[%clk
0:01:51.9]} 20. Bf2 {[%clk 0:01:53.4]} 20... f6 {[%clk 0:01:32.9]} 21. Nxc4
{[%clk 0:01:51.8]} 21... dxc4 {[%clk 0:01:32.5]} 22. exf6 {[%clk 0:01:50.1]}
22... Bxf6 {[%clk 0:01:31]} 23. Qxc4 {[%clk 0:01:49.8]} 23... Rac8 {[%clk
0:01:25.8]} 24. Nd4 {[%clk 0:01:48.7]} 24... Qd5 {[%clk 0:01:21.5]} 25. Qxd5
{[%clk 0:01:46.3]} 25... exd5 {[%clk 0:01:22.4]} 26. Rac1 {[%clk 0:01:39.9]}
26... Rfe8 {[%clk 0:01:15.5]} 27. Nb5 {[%clk 0:01:38.8]} 27... Re2 {[%clk
0:01:11.3]} 28. a3 {[%clk 0:01:36.9]} 28... Nf8 {[%clk 0:00:56.6]} 29. Rfe1
{[%clk 0:01:32]} 29... Rce8 {[%clk 0:00:54.8]} 30. Kf1 {[%clk 0:01:30.5]} 30...
Rxe1+ {[%clk 0:00:52.7]} 31. Rxe1 {[%clk 0:01:29.1]} 31... Rxe1+ {[%clk
0:00:48.1]} 32. Kxe1 {[%clk 0:01:28]} 32... Nd7 {[%clk 0:00:48.7]} 33. Ke2
{[%clk 0:01:26.5]} 33... Kf8 {[%clk 0:00:46.9]} 34. Nd6 {[%clk 0:01:20.4]} 34...
Bxc3 {[%clk 0:00:39.6]} 35. Nxb7 {[%clk 0:01:19.4]} 35... d4 {[%clk 0:00:38.6]}
36. Kd3 {[%clk 0:01:13.8]} 36... Ke7 {[%clk 0:00:35.6]} 37. Bxd4 {[%clk
0:01:13.3]} 37... Bxd4 {[%clk 0:00:34.8]} 38. Kxd4 {[%clk 0:01:12.8]} 38... Nb8
{[%clk 0:00:33.3]} 39. Kd5 {[%clk 0:01:11.3]} 39... Kd7 {[%clk 0:00:33.4]} 40.
Nd6 {[%clk 0:01:07.3]} 40... Nc6 {[%clk 0:00:30]} 41. Nf5 {[%clk 0:01:04.7]}
41... g6 {[%clk 0:00:27.6]} 42. Nd4 {[%clk 0:01:03.4]} 42... Ne7+ {[%clk
0:00:25.9]} 43. Kc4 {[%clk 0:01:02.6]} 43... h5 {[%clk 0:00:21.8]} 44. h4 {[%clk
0:01:00.1]} 44... Kc8 {[%clk 0:00:20]} 45. c6 {[%clk 0:00:59.6]} 45... Kb8
{[%clk 0:00:20.1]} 46. Kc5 {[%clk 0:00:58.1]} 46... Nc8 {[%clk 0:00:20.4]} 47.
Nb5 {[%clk 0:00:54.1]} 47... Ne7 {[%clk 0:00:19.6]} 48. c7+ {[%clk 0:00:49.3]}
48... Kb7 {[%clk 0:00:18]} 49. Nd6+ {[%clk 0:00:48.9]} 49... Ka6 {[%clk
0:00:17.9]} 50. c8=Q+ {[%clk 0:00:44.6]} 50... Nxc8 {[%clk 0:00:17.9]} 51. Nxc8
{[%clk 0:00:44.4]} 51... Kb7 {[%clk 0:00:18.5]} 52. Nd6+ {[%clk 0:00:44.1]}
52... Ka6 {[%clk 0:00:17.5]} 53. b7 {[%clk 0:00:43.8]} 53... Ka7 {[%clk
0:00:17.5]} 54. Kc6 {[%clk 0:00:43.6]} 54... Kb8 {[%clk 0:00:17.6]} 55. Nc4
{[%clk 0:00:42.7]} 55... g5 {[%clk 0:00:16.7]} 56. fxg5 {[%clk 0:00:41.5]} 56...
Ka7 {[%clk 0:00:16.1]} 57. g6 {[%clk 0:00:40.8]} 57... Kb8 {[%clk 0:00:16.3]}
58. g7 {[%clk 0:00:40.9]} 58... Ka7 {[%clk 0:00:16.5]} 59. g8=Q {[%clk
0:00:39.8]} 1-0

[Event "Betsys MČR v online bleskovém šachu 2021"]
[Site "Chess.com"]
[Date "2021.04.17"]
[Round "8"]
[White "vikysachy"]
[Black "Ami2013"]
[Result "0-1"]
[WhiteElo "843"]
[BlackElo "460"]
[TimeControl "180+1"]
[EndTime "10:21:54 PDT"]
[Termination "Uživatel Ami2013 zvítězil na čas"]

1. e4 {[%clk 0:03:00.9]} 1... e5 {[%clk 0:02:58.6]} 2. Nf3 {[%clk 0:03:00.3]}
2... Nc6 {[%clk 0:02:54.6]} 3. Bc4 {[%clk 0:02:57.1]} 3... Nf6 {[%clk
0:02:51.8]} 4. Ng5 {[%clk 0:02:54.2]} 4... d6 {[%clk 0:02:49.4]} 5. Nxf7 {[%clk
0:02:50.5]} 5... Qe7 {[%clk 0:02:40.7]} 6. Nxh8 {[%clk 0:02:48.9]} 6... Nxe4
{[%clk 0:02:33.5]} 7. Bf7+ {[%clk 0:02:46.6]} 7... Kd8 {[%clk 0:02:25]} 8. Bd5
{[%clk 0:02:40.3]} 8... Qf6 {[%clk 0:02:20.9]} 9. Nf7+ {[%clk 0:02:34.8]} 9...
Ke8 {[%clk 0:02:03.9]} 10. Qh5 {[%clk 0:02:19]} 10... g6 {[%clk 0:01:45.4]} 11.
Qe2 {[%clk 0:02:04]} 11... Nd4 {[%clk 0:01:19.3]} 12. Qxe4 {[%clk 0:01:59.3]}
12... Bf5 {[%clk 0:01:10.3]} 13. Qe3 {[%clk 0:01:35.2]} 13... Nxc2+ {[%clk
0:01:06.2]} 14. Ke2 {[%clk 0:01:31.4]} 14... Nxe3 {[%clk 0:01:05.8]} 15. dxe3
{[%clk 0:01:31]} 15... Bg4+ {[%clk 0:01:03.9]} 16. Bf3 {[%clk 0:01:25.9]} 16...
Bxf3+ {[%clk 0:00:58.8]} 17. gxf3 {[%clk 0:01:25.4]} 17... Qxf7 {[%clk
0:00:58.3]} 18. Nc3 {[%clk 0:01:22.6]} 18... e4 {[%clk 0:00:54.4]} 19. Nxe4
{[%clk 0:01:18.5]} 19... g5 {[%clk 0:00:52.3]} 20. Nxg5 {[%clk 0:01:17.5]} 20...
Qg6 {[%clk 0:00:50.7]} 21. Ne4 {[%clk 0:01:09.6]} 21... Qg2 {[%clk 0:00:47.3]}
22. Rd1 {[%clk 0:01:03]} 22... Qxh2 {[%clk 0:00:45.4]} 23. Bd2 {[%clk
0:01:01.3]} 23... d5 {[%clk 0:00:40]} 24. Nf6+ {[%clk 0:00:45]} 24... Ke7 {[%clk
0:00:38.4]} 25. Nxd5+ {[%clk 0:00:44.6]} 25... Kd6 {[%clk 0:00:32.2]} 26. Bb4+
{[%clk 0:00:39.4]} 26... Ke6 {[%clk 0:00:29]} 27. Nxc7+ {[%clk 0:00:37.6]} 27...
Qxc7 {[%clk 0:00:23.9]} 28. Bxf8 {[%clk 0:00:34.1]} 28... Rxf8 {[%clk
0:00:22.6]} 29. Rac1 {[%clk 0:00:29]} 29... Qf7 {[%clk 0:00:20.4]} 30. f4 {[%clk
0:00:22]} 30... Qh5+ {[%clk 0:00:18.8]} 31. f3 {[%clk 0:00:20.8]} 31... Qh2+
{[%clk 0:00:18]} 32. Kd3 {[%clk 0:00:17.4]} 32... Rd8+ {[%clk 0:00:16.5]} 33.
Ke4 {[%clk 0:00:16.3]} 33... Re8 {[%clk 0:00:15.7]} 34. Kd3 {[%clk 0:00:08.7]}
34... Rd8+ {[%clk 0:00:14.5]} 35. Kc3 {[%clk 0:00:09.1]} 35... Rc8+ {[%clk
0:00:13.8]} 36. Kb4 {[%clk 0:00:09.1]} 36... Rg8 {[%clk 0:00:11.1]} 37. e4
{[%clk 0:00:05]} 37... Qxb2+ {[%clk 0:00:10.6]} 38. Kc4 {[%clk 0:00:04.1]} 38...
Qxa2+ {[%clk 0:00:09]} 39. Kd3 {[%clk 0:00:04.2]} 39... Qa3+ {[%clk 0:00:07.4]}
40. Ke2 {[%clk 0:00:04.4]} 40... Qb2+ {[%clk 0:00:06.2]} 41. Kf1 {[%clk
0:00:04.7]} 41... Rg2 {[%clk 0:00:03.9]} 0-1

[Event "Betsys MČR v online bleskovém šachu 2021"]
[Site "Chess.com"]
[Date "2021.04.17"]
[Round "8"]
[White "Saygram"]
[Black "berny643"]
[Result "0-1"]
[WhiteElo "2410"]
[BlackElo "2587"]
[TimeControl "180+1"]
[EndTime "10:21:57 PDT"]
[Termination "Uživatel berny643 zvítězil na čas"]

1. e4 {[%clk 0:03:00.9]} 1... c5 {[%clk 0:02:59.9]} 2. c3 {[%clk 0:03:00.8]}
2... Nf6 {[%clk 0:02:57.1]} 3. e5 {[%clk 0:03:01]} 3... Nd5 {[%clk 0:02:57.7]}
4. d4 {[%clk 0:03:01.2]} 4... cxd4 {[%clk 0:02:57.8]} 5. cxd4 {[%clk 0:03:01.5]}
5... e6 {[%clk 0:02:58.2]} 6. Nf3 {[%clk 0:03:00.9]} 6... b6 {[%clk 0:02:56.8]}
7. Bc4 {[%clk 0:03:01.3]} 7... Bb7 {[%clk 0:02:51.4]} 8. O-O {[%clk 0:03:00.1]}
8... Be7 {[%clk 0:02:51.2]} 9. Bxd5 {[%clk 0:02:58.5]} 9... Bxd5 {[%clk
0:02:50.3]} 10. Nc3 {[%clk 0:02:59.2]} 10... Bb7 {[%clk 0:02:49.6]} 11. d5
{[%clk 0:02:59.1]} 11... exd5 {[%clk 0:02:41.2]} 12. Nxd5 {[%clk 0:03:00]} 12...
O-O {[%clk 0:02:41.1]} 13. Bf4 {[%clk 0:02:56.5]} 13... Nc6 {[%clk 0:02:40.1]}
14. Re1 {[%clk 0:02:50.1]} 14... Bc5 {[%clk 0:02:37.7]} 15. a3 {[%clk
0:02:48.9]} 15... a5 {[%clk 0:02:37]} 16. Qd2 {[%clk 0:02:44.4]} 16... Ne7
{[%clk 0:02:32.6]} 17. Nc3 {[%clk 0:02:17]} 17... Ng6 {[%clk 0:02:24.1]} 18. Bg3
{[%clk 0:02:16.5]} 18... Re8 {[%clk 0:02:17.3]} 19. Rad1 {[%clk 0:02:15.5]}
19... Bc6 {[%clk 0:02:15.2]} 20. Ne4 {[%clk 0:02:07.6]} 20... Bf8 {[%clk
0:02:11.7]} 21. Nd6 {[%clk 0:02:00.4]} 21... Bxd6 {[%clk 0:01:49.5]} 22. Qxd6
{[%clk 0:01:59.8]} 22... Qe7 {[%clk 0:01:47.1]} 23. Qxe7 {[%clk 0:01:45.7]}
23... Rxe7 {[%clk 0:01:47]} 24. Nd4 {[%clk 0:01:46.2]} 24... Bd5 {[%clk
0:01:34.8]} 25. f4 {[%clk 0:01:44]} 25... Bc6 {[%clk 0:01:22.7]} 26. f5 {[%clk
0:01:23.9]} 26... Nf8 {[%clk 0:01:21.3]} 27. Bh4 {[%clk 0:01:04.3]} 27... Ree8
{[%clk 0:01:21]} 28. Nxc6 {[%clk 0:01:04]} 28... dxc6 {[%clk 0:01:20.7]} 29. Rd6
{[%clk 0:01:03.6]} 29... Rac8 {[%clk 0:01:20.1]} 30. Kf2 {[%clk 0:01:03.4]}
30... a4 {[%clk 0:01:19.5]} 31. g4 {[%clk 0:00:59.8]} 31... Rc7 {[%clk 0:01:15]}
32. e6 {[%clk 0:00:51.9]} 32... fxe6 {[%clk 0:01:13.7]} 33. fxe6 {[%clk
0:00:52.3]} 33... h6 {[%clk 0:01:13.9]} 34. e7 {[%clk 0:00:36.8]} 34... Nh7
{[%clk 0:01:04.3]} 35. Ree6 {[%clk 0:00:33]} 35... g5 {[%clk 0:01:01.7]} 36. Bg3
{[%clk 0:00:28]} 36... Rcxe7 {[%clk 0:01:00.4]} 37. Rxe7 {[%clk 0:00:27.6]}
37... Rxe7 {[%clk 0:01:00.4]} 38. Rxc6 {[%clk 0:00:28.2]} 38... Rf7+ {[%clk
0:00:59.7]} 39. Ke3 {[%clk 0:00:27.3]} 39... Nf6 {[%clk 0:00:57.9]} 40. h3
{[%clk 0:00:25.5]} 40... b5 {[%clk 0:00:52.2]} 41. Kd4 {[%clk 0:00:23.8]} 41...
Rd7+ {[%clk 0:00:48.3]} 42. Rd6 {[%clk 0:00:23.7]} 42... Rf7 {[%clk 0:00:43.1]}
43. Be5 {[%clk 0:00:20.5]} 43... Nd7 {[%clk 0:00:39.9]} 44. Rxh6 {[%clk
0:00:19.7]} 44... Kf8 {[%clk 0:00:39]} 45. Bd6+ {[%clk 0:00:18.2]} 45... Kg7
{[%clk 0:00:39]} 46. Rh5 {[%clk 0:00:14.6]} 46... Kg6 {[%clk 0:00:38.5]} 47. h4
{[%clk 0:00:12.7]} 47... gxh4 {[%clk 0:00:37.8]} 48. Rxb5 {[%clk 0:00:12.7]}
48... Rf2 {[%clk 0:00:37.6]} 49. Rh5 {[%clk 0:00:11]} 49... Rd2+ {[%clk
0:00:34.6]} 50. Kc4 {[%clk 0:00:07]} 50... Rxd6 {[%clk 0:00:34.8]} 51. Rxh4
{[%clk 0:00:07.2]} 51... Ne5+ {[%clk 0:00:34.6]} 52. Kb4 {[%clk 0:00:05.8]}
52... Rd4+ {[%clk 0:00:34.4]} 53. Kb5 {[%clk 0:00:05.1]} 53... Nd3 {[%clk
0:00:30.8]} 54. Rh8 {[%clk 0:00:04.3]} 54... Nxb2 {[%clk 0:00:29.9]} 55. Ra8
{[%clk 0:00:04.2]} 55... Rxg4 {[%clk 0:00:29.4]} 0-1

[Event "Betsys MČR v online bleskovém šachu 2021"]
[Site "Chess.com"]
[Date "2021.04.17"]
[Round "8"]
[White "krajic001"]
[Black "Kamilotka"]
[Result "0-1"]
[WhiteElo "1200"]
[BlackElo "1612"]
[TimeControl "180+1"]
[EndTime "10:21:57 PDT"]
[Termination "Uživatel Kamilotka zvítězil na čas"]

1. e4 {[%clk 0:02:59]} 1... e5 {[%clk 0:02:59.8]} 2. Bc4 {[%clk 0:02:57]} 2...
Nf6 {[%clk 0:02:58.4]} 3. d4 {[%clk 0:02:56]} 3... d6 {[%clk 0:02:54.2]} 4. dxe5
{[%clk 0:02:52.9]} 4... dxe5 {[%clk 0:02:43.4]} 5. Bxf7+ {[%clk 0:02:51]} 5...
Ke7 {[%clk 0:02:39.9]} 6. Qxd8+ {[%clk 0:02:49.5]} 6... Kxd8 {[%clk 0:02:39.6]}
7. Bg5 {[%clk 0:02:49]} 7... Be7 {[%clk 0:02:32.9]} 8. Nc3 {[%clk 0:02:46.5]}
8... Nc6 {[%clk 0:02:25.9]} 9. O-O-O+ {[%clk 0:02:45.7]} 9... Bd7 {[%clk
0:02:24.1]} 10. Bxf6 {[%clk 0:02:41.4]} 10... Bxf6 {[%clk 0:02:17]} 11. Be6
{[%clk 0:02:37.1]} 11... Nd4 {[%clk 0:02:15]} 12. Bxd7 {[%clk 0:02:30.1]} 12...
Kxd7 {[%clk 0:02:14.5]} 13. Nb5 {[%clk 0:02:29.8]} 13... Ke6 {[%clk 0:02:08]}
14. Nxc7+ {[%clk 0:02:27.1]} 14... Ke7 {[%clk 0:02:07]} 15. Nxa8 {[%clk
0:02:23.9]} 15... Rxa8 {[%clk 0:02:07.3]} 16. c3 {[%clk 0:02:18.7]} 16... Nc6
{[%clk 0:02:04.9]} 17. Nf3 {[%clk 0:02:18]} 17... Rc8 {[%clk 0:02:03.6]} 18. Rd3
{[%clk 0:01:45.9]} 18... Nb4 {[%clk 0:01:53]} 19. Rd2 {[%clk 0:01:34.7]} 19...
g5 {[%clk 0:01:44.4]} 20. Rhd1 {[%clk 0:01:28.3]} 20... g4 {[%clk 0:01:34.8]}
21. Rd7+ {[%clk 0:01:26.6]} 21... Ke8 {[%clk 0:01:33.5]} 22. Kb1 {[%clk
0:01:25.1]} 22... gxf3 {[%clk 0:01:11.9]} 23. cxb4 {[%clk 0:01:13.5]} 23... fxg2
{[%clk 0:01:11.4]} 24. Rxh7 {[%clk 0:01:09.2]} 24... Rc4 {[%clk 0:01:03.6]} 25.
Rg1 {[%clk 0:01:05.3]} 25... Rxb4 {[%clk 0:00:58.2]} 26. Rxg2 {[%clk 0:01:03.1]}
26... Kf8 {[%clk 0:00:57]} 27. Rh6 {[%clk 0:00:54.9]} 27... Be7 {[%clk 0:00:51]}
28. Re6 {[%clk 0:00:52]} 28... Rxe4 {[%clk 0:00:47.5]} 29. f3 {[%clk 0:00:38.2]}
29... Re3 {[%clk 0:00:32.2]} 30. Rd2 {[%clk 0:00:31.8]} 30... Kf7 {[%clk
0:00:30]} 31. Rh6 {[%clk 0:00:25.7]} 31... Rxf3 {[%clk 0:00:25.3]} 32. Rh7+
{[%clk 0:00:23.5]} 32... Ke6 {[%clk 0:00:23.6]} 33. h4 {[%clk 0:00:20.7]} 33...
Rh3 {[%clk 0:00:20.6]} 34. h5 {[%clk 0:00:19.5]} 34... Bg5 {[%clk 0:00:18.8]}
35. Rxb7 {[%clk 0:00:15.8]} 35... Bxd2 {[%clk 0:00:17.9]} 36. Rxa7 {[%clk
0:00:12.9]} 36... Rxh5 {[%clk 0:00:17.5]} 37. Ra6+ {[%clk 0:00:11.5]} 37... Kf5
{[%clk 0:00:16.1]} 38. Rc6 {[%clk 0:00:09.6]} 38... Rh1+ {[%clk 0:00:12.1]} 39.
Kc2 {[%clk 0:00:09.2]} 39... Bf4 {[%clk 0:00:12]} 40. Kd3 {[%clk 0:00:08.3]}
40... e4+ {[%clk 0:00:10.6]} 41. Ke2 {[%clk 0:00:08]} 41... Rh2+ {[%clk
0:00:10.2]} 42. Ke1 {[%clk 0:00:05.8]} 42... Rxb2 {[%clk 0:00:10.2]} 43. Rc5+
{[%clk 0:00:04.6]} 43... Kg4 {[%clk 0:00:09.7]} 44. Ra5 {[%clk 0:00:02.9]} 44...
e3 {[%clk 0:00:07.6]} 0-1

[Event "Betsys MČR v online bleskovém šachu 2021"]
[Site "Chess.com"]
[Date "2021.04.17"]
[Round "8"]
[White "tiger196223"]
[Black "SanyH"]
[Result "1-0"]
[WhiteElo "1825"]
[BlackElo "1600"]
[TimeControl "180+1"]
[EndTime "10:21:58 PDT"]
[Termination "Uživatel tiger196223 zvítězil matem"]

1. d4 {[%clk 0:03:00.9]} 1... d5 {[%clk 0:02:59.4]} 2. Nf3 {[%clk 0:03:01.4]}
2... Nf6 {[%clk 0:02:58.4]} 3. Bg5 {[%clk 0:03:01.8]} 3... c6 {[%clk 0:02:53.4]}
4. c3 {[%clk 0:03:00.1]} 4... e6 {[%clk 0:02:52.8]} 5. Ne5 {[%clk 0:02:55.3]}
5... Be7 {[%clk 0:02:50.4]} 6. e3 {[%clk 0:02:55]} 6... O-O {[%clk 0:02:48.9]}
7. Bd3 {[%clk 0:02:53.9]} 7... Nbd7 {[%clk 0:02:46.7]} 8. f4 {[%clk 0:02:53.2]}
8... c5 {[%clk 0:02:40]} 9. O-O {[%clk 0:02:51]} 9... h6 {[%clk 0:02:21.8]} 10.
Bh4 {[%clk 0:02:49.5]} 10... Qb6 {[%clk 0:02:10.9]} 11. Qb3 {[%clk 0:02:45.9]}
11... Qc7 {[%clk 0:02:01.7]} 12. Qc2 {[%clk 0:02:32.9]} 12... b6 {[%clk
0:01:47.5]} 13. Nd2 {[%clk 0:02:27]} 13... Bb7 {[%clk 0:01:38.2]} 14. Rf3 {[%clk
0:02:21]} 14... Rac8 {[%clk 0:01:29.4]} 15. Raf1 {[%clk 0:02:12.9]} 15... c4
{[%clk 0:01:13.8]} 16. Be2 {[%clk 0:02:09.8]} 16... b5 {[%clk 0:01:09.8]} 17. a3
{[%clk 0:02:08.6]} 17... a5 {[%clk 0:01:07.5]} 18. Rh3 {[%clk 0:01:59.2]} 18...
b4 {[%clk 0:01:04.3]} 19. axb4 {[%clk 0:01:56.5]} 19... axb4 {[%clk 0:01:03.2]}
20. Nxd7 {[%clk 0:01:44.6]} 20... Qxd7 {[%clk 0:01:00.8]} 21. Nf3 {[%clk
0:01:41.4]} 21... bxc3 {[%clk 0:00:55.7]} 22. bxc3 {[%clk 0:01:39.1]} 22... Ne4
{[%clk 0:00:47.4]} 23. Ne5 {[%clk 0:01:28.2]} 23... Qc7 {[%clk 0:00:39.4]} 24.
Bxe7 {[%clk 0:01:21.7]} 24... Qxe7 {[%clk 0:00:38.6]} 25. f5 {[%clk 0:01:16.8]}
25... Ra8 {[%clk 0:00:19]} 26. f6 {[%clk 0:00:58.6]} 26... gxf6 {[%clk
0:00:15.2]} 27. Ng4 {[%clk 0:00:57.2]} 27... f5 {[%clk 0:00:13.8]} 28. Nxh6+
{[%clk 0:00:46.1]} 28... Kg7 {[%clk 0:00:13.7]} 29. Rxf5 {[%clk 0:00:40.4]}
29... exf5 {[%clk 0:00:12.2]} 30. Nxf5+ {[%clk 0:00:39.5]} 30... Kg8 {[%clk
0:00:11.8]} 31. Nxe7+ {[%clk 0:00:39]} 31... Kg7 {[%clk 0:00:12.2]} 32. Rf3
{[%clk 0:00:29]} 32... Rh8 {[%clk 0:00:10.8]} 33. Nf5+ {[%clk 0:00:25.8]} 33...
Kf8 {[%clk 0:00:10.8]} 34. Ng3 {[%clk 0:00:25.2]} 34... Ra6 {[%clk 0:00:10.1]}
35. Nxe4 {[%clk 0:00:22.1]} 35... Rah6 {[%clk 0:00:10.2]} 36. h3 {[%clk
0:00:21.3]} 36... dxe4 {[%clk 0:00:10]} 37. Rf4 {[%clk 0:00:15.4]} 37... Rg6
{[%clk 0:00:09.9]} 38. Bxc4 {[%clk 0:00:14.3]} 38... Rhg8 {[%clk 0:00:08.3]} 39.
Rf2 {[%clk 0:00:12.4]} 39... Ke7 {[%clk 0:00:06.8]} 40. Rxf7+ {[%clk 0:00:11.5]}
40... Kd8 {[%clk 0:00:05.6]} 41. Rxb7 {[%clk 0:00:10.5]} 41... Rxg2+ {[%clk
0:00:04.5]} 42. Qxg2 {[%clk 0:00:08.8]} 42... Rxg2+ {[%clk 0:00:05.4]} 43. Kxg2
{[%clk 0:00:09.1]} 43... Kc8 {[%clk 0:00:05.8]} 44. Bd5 {[%clk 0:00:09.3]} 44...
Kd8 {[%clk 0:00:05.3]} 45. Kg3 {[%clk 0:00:09.7]} 45... Kc8 {[%clk 0:00:05.3]}
46. Kf4 {[%clk 0:00:10.2]} 46... Kd8 {[%clk 0:00:06.1]} 47. Ke5 {[%clk
0:00:10.4]} 47... Kc8 {[%clk 0:00:07]} 48. Ke6 {[%clk 0:00:10.5]} 48... Kd8
{[%clk 0:00:07.9]} 49. h4 {[%clk 0:00:09.6]} 49... Kc8 {[%clk 0:00:08.8]} 50.
Kd6 {[%clk 0:00:08.7]} 50... Kd8 {[%clk 0:00:09.7]} 51. Rb8# {[%clk 0:00:08.9]}
1-0